[Event "GER-ch Youth-U18w 2023"]
[Site "Willingen"]
[Date "2023.05.28"]
[Round "2.2"]
[White "Wagner, Margarethe"]
[Black "Heutling, Elina"]
[Result "1-0"]
[Annotator "NA RC"]
[ECO "C78"]
[WhiteElo "1831"]
[BlackElo "1878"]
[PlyCount "45"]
[EventDate "2022.06.05"]
[EventType "swiss"]
[EventRounds "9"]
[EventCountry "GER"]
[SourceTitle "playchess.com"]
[Source "ChessBase"]
[SourceQuality "1"]
[TimeControl "40/4500+30:900+30"]

1. e4 {[%emt 0:00:00]} e5 {[%emt 0:00:00]} 2. Nf3 {[%emt 0:00:00]} Nc6 {[%emt 0:00:00]} 3. Bb5 {[%emt 0:00:00]} a6 {[%emt 0:00:00]} 4. Ba4 {[%emt 0:00:00]} Bc5 {[%emt 0:00:00]} 5. c3 {[%emt 0:00:00]} b5 {[%emt 0:00:00]} 6. Bb3 {[%emt 0:00:00]} Bb6 {[%emt 0:00:00]} 7. O-O {[%emt 0:00:00]} d6 {[%emt 0:00:00]} 8. a4 {[%emt 0:00:00]} Bb7 {[%emt 0:00:00]} 9. d4 {[%emt 0:00:00]} h6 {[%emt 0:00:00]} 10. Re1 {[%emt 0:00:00]} Nf6 {[%emt 0:00:00]} 11. Be3 {[%emt 0:00:00]} Ng4 {[%emt 0:00:00]} 12. Nbd2 {[%emt 0:00:00]} Nxe3 {[%emt 0:00:00]} 13. fxe3 {[%emt 0:00:00]} O-O {[%emt 0:00:00]} 14. Rf1 {[%emt 0:02:19]} Kh8 {[%emt 0:06:22]} 15. Qe1 {[%emt 0:02:20]} f5 {[%emt 0:06:01]} 16. Nh4 {[%emt 0:01:41]} Ne7 {[%emt 0:19:42]} 17. exf5 {[%emt 0:13:39]} Rf6 {[%emt 0:03:06]} 18. Qg3 {[%emt 0:04:41]} c5 {[%emt 0:09:05]} 19. dxe5 {[%emt 0:06:06]} dxe5 {[%emt 0:01:13]} 20. Rad1 {[%emt 0:01:53]} c4 {[%emt 0:13:11]} 21. Nxc4 {[%emt 0:04:21]} Qc7 {[%emt 0:01:49]} 22. Nxe5 {[%emt 0:02:23]} Nc6 {[%emt 0:03:31]} 23. Rd7 {[%emt 0:11:40]} 1-0

[Event "GER-ch Youth-U18w 2023"]
[Site "Willingen"]
[Date "2023.05.28"]
[Round "2.3"]
[White "Groeschel, Karoline"]
[Black "Adelhardt, Lisa"]
[Result "1-0"]
[Annotator "NA RC"]
[ECO "B36"]
[WhiteElo "1892"]
[BlackElo "1656"]
[PlyCount "55"]
[EventDate "2022.06.05"]
[EventType "swiss"]
[EventRounds "9"]
[EventCountry "GER"]
[SourceTitle "playchess.com"]
[Source "ChessBase"]
[SourceQuality "1"]
[TimeControl "40/4500+30:900+30"]

1. e4 {[%emt 0:00:00]} c5 {[%emt 0:00:00]} 2. Nf3 {[%emt 0:00:00]} Nc6 {[%emt 0:00:00]} 3. d4 {[%emt 0:00:00]} cxd4 {[%emt 0:00:00]} 4. Nxd4 {[%emt 0:00:00]} g6 {[%emt 0:00:00]} 5. c4 {[%emt 0:00:00]} Nf6 {[%emt 0:00:00]} 6. Nc3 {[%emt 0:00:00]} Nxd4 {[%emt 0:00:00]} 7. Qxd4 {[%emt 0:00:00]} d6 {[%emt 0:00:00]} 8. Be2 {[%emt 0:00:00]} Bg7 {[%emt 0:00:00]} 9. Be3 {[%emt 0:00:00]} O-O {[%emt 0:00:00]} 10. Qd2 {[%emt 0:00:00]} a5 {[%emt 0:00:00]} 11. O-O {[%emt 0:00:00]} a4 {[%emt 0:00:00]} 12. Rac1 {[%emt 0:00:00]} Qa5 {[%emt 0:00:00]} 13. b3 {[%emt 0:08:43]} axb3 {[%emt 0:00:00]} 14. axb3 {[%emt 0:00:07]} Be6 {[%emt 0:00:08]} 15. h3 {[%emt 0:11:24]} Rfc8 {[%emt 0:05:30]} 16. f4 {[%emt 0:06:01]} Nd7 {[%emt 0:07:22]} 17. f5 {[%emt 0:17:40]} gxf5 {[%emt 0:01:05]} 18. exf5 {[%emt 0:00:08]} Bxc3 {[%emt 0:03:22]} 19. Qxc3 {[%emt 0:00:20]} Bxf5 {[%emt 0:01:37]} 20. b4 {[%emt 0:00:24]} Qe5 {[%emt 0:12:22]} 21. Qxe5 {[%emt 0:00:10]} Nxe5 {[%emt 0:00:39]} 22. Rxf5 {[%emt 0:00:10]} Ra2 {[%emt 0:01:14]} 23. Rf2 {[%emt 0:03:09]} Rb2 {[%emt 0:04:40]} 24. b5 {[%emt 0:01:25]} Rb4 {[%emt 0:02:19]} 25. Rf4 {[%emt 0:01:57]} Rb3 {[%emt 0:00:57]} 26. Kf2 {[%emt 0:02:50]} Rb2 {[%emt 0:03:16]} 27. Rd4 {[%emt 0:01:22]} Ra8 {[%emt 0:04:18]} 28. Rd2 {[%emt 0:01:47]} 1-0

[Event "GER-ch Youth-U18w 2023"]
[Site "Willingen"]
[Date "2023.05.28"]
[Round "2.4"]
[White "Albayrak, Nese Pinar"]
[Black "Peglau, Mirjam"]
[Result "1/2-1/2"]
[Annotator "NA RC"]
[ECO "C06"]
[WhiteElo "1763"]
[BlackElo "1932"]
[PlyCount "40"]
[EventDate "2022.06.05"]
[EventType "swiss"]
[EventRounds "9"]
[EventCountry "GER"]
[SourceTitle "playchess.com"]
[Source "ChessBase"]
[SourceQuality "1"]
[TimeControl "40/4500+30:900+30"]

1. e4 {[%emt 0:00:00]} e6 {[%emt 0:00:00]} 2. d4 {[%emt 0:00:00]} d5 {[%emt 0:00:00]} 3. Nd2 {[%emt 0:00:00]} Nf6 {[%emt 0:00:00]} 4. e5 {[%emt 0:00:00]} Nfd7 {[%emt 0:00:00]} 5. Bd3 {[%emt 0:00:00]} c5 {[%emt 0:00:00]} 6. c3 {[%emt 0:00:00]} Nc6 {[%emt 0:00:00]} 7. Ne2 {[%emt 0:00:00]} Qb6 {[%emt 0:00:00]} 8. Nf3 {[%emt 0:00:00]} f6 {[%emt 0:00:00]} 9. exf6 {[%emt 0:00:00]} Nxf6 {[%emt 0:00:00]} 10. O-O {[%emt 0:00:00]} Bd6 {[%emt 0:00:00]} 11. Bf4 {[%emt 0:10:33]} Bxf4 {[%emt 0:00:00]} 12. Nxf4 {[%emt 0:00:10]} O-O {[%emt 0:00:00]} 13. Ng5 {[%emt 0:11:15]} Nd8 {[%emt 0:07:59]} 14. Re1 {[%emt 0:07:48]} cxd4 {[%emt 0:04:30]} 15. Nxh7 {[%emt 0:15:25]} Nxh7 {[%emt 0:05:28]} 16. Bxh7+ {[%emt 0:00:08]} Kxh7 {[%emt 0:00:23]} 17. Qh5+ {[%emt 0:00:05]} Kg8 {[%emt 0:00:07]} 18. Ng6 {[%emt 0:00:25]} Re8 {[%emt 0:28:58]} 19. Qh8+ {[%emt 0:01:01]} Kf7 {[%emt 0:00:03]} 20. Ne5+ {[%emt 0:00:35]} Ke7 {[%emt 0:00:59]} 1/2-1/2

[Event "GER-ch Youth-U18w 2023"]
[Site "Willingen"]
[Date "2023.05.28"]
[Round "2.5"]
[White "Cordes, Jule"]
[Black "Buchholz, Maja Patricia"]
[Result "1-0"]
[Annotator "NA RC"]
[ECO "B14"]
[WhiteElo "1744"]
[BlackElo "1899"]
[PlyCount "89"]
[EventDate "2022.06.05"]
[EventType "swiss"]
[EventRounds "9"]
[EventCountry "GER"]
[SourceTitle "playchess.com"]
[Source "ChessBase"]
[SourceQuality "1"]
[TimeControl "40/4500+30:900+30"]

1. d4 {[%emt 0:00:00]} Nf6 {[%emt 0:00:00]} 2. c4 {[%emt 0:00:00]} g6 {[%emt 0:00:00]} 3. Nc3 {[%emt 0:00:00]} Bg7 {[%emt 0:00:00]} 4. Nf3 {[%emt 0:00:00]} O-O {[%emt 0:00:00]} 5. Bg5 {[%emt 0:00:00]} c5 {[%emt 0:00:00]} 6. e3 {[%emt 0:00:00]} cxd4 {[%emt 0:00:00]} 7. exd4 {[%emt 0:00:00]} d5 {[%emt 0:00:00]} 8. Bxf6 {[%emt 0:00:00]} Bxf6 {[%emt 0:00:00]} 9. Nxd5 {[%emt 0:00:00]} Bg7 {[%emt 0:00:00]} 10. Be2 {[%emt 0:08:23]} Nc6 {[%emt 0:00:00]} 11. O-O {[%emt 0:03:33]} e6 {[%emt 0:00:00]} 12. Nc3 {[%emt 0:02:56]} Nxd4 {[%emt 0:00:00]} 13. Nxd4 {[%emt 0:01:57]} Bxd4 {[%emt 0:00:00]} 14. Bf3 {[%emt 0:08:13]} Qf6 {[%emt 0:00:00]} 15. Rc1 {[%emt 0:05:35]} Rb8 {[%emt 0:05:49]} 16. Qe2 {[%emt 0:02:21]} Bd7 {[%emt 0:05:03]} 17. Rfd1 {[%emt 0:04:06]} Bc6 {[%emt 0:06:44]} 18. Rd3 {[%emt 0:07:45]} Rfe8 {[%emt 0:09:34]} 19. b3 {[%emt 0:04:57]} Be5 {[%emt 0:04:53]} 20. g3 {[%emt 0:13:58]} Bd4 {[%emt 0:08:03]} 21. Ne4 {[%emt 0:14:19]} Qg7 {[%emt 0:06:21]} 22. Nd6 {[%emt 0:03:08]} Red8 {[%emt 0:00:56]} 23. Bxc6 {[%emt 0:04:17]} Rxd6 {[%emt 0:02:34]} 24. Bf3 {[%emt 0:00:43]} Rbd8 {[%emt 0:03:00]} 25. Rcd1 {[%emt 0:00:30]} b6 {[%emt 0:01:33]} 26. Kg2 {[%emt 0:00:45]} Qf6 {[%emt 0:04:30]} 27. a4 {[%emt 0:00:48]} a5 {[%emt 0:02:24]} 28. Qd2 {[%emt 0:00:34]} e5 {[%emt 0:08:22]} 29. Bd5 {[%emt 0:00:31]} Kg7 {[%emt 0:02:38]} 30. Rf3 {[%emt 0:00:18]} Qe7 {[%emt 0:02:29]} 31. Rxf7+ {[%emt 0:00:37]} Qxf7 {[%emt 0:00:06]} 32. Bxf7 {[%emt 0:00:05]} Kxf7 {[%emt 0:00:18]} 33. Qc2 {[%emt 0:01:00]} Rf6 {[%emt 0:03:29]} 34. Rf1 {[%emt 0:00:09]} Kg7 {[%emt 0:01:53]} 35. Qe4 {[%emt 0:00:51]} g5 {[%emt 0:03:38]} 36. f3 {[%emt 0:00:34]} Rdf8 {[%emt 0:00:41]} 37. Qg4 {[%emt 0:00:30]} Kg6 {[%emt 0:05:27]} 38. h4 {[%emt 0:00:30]} h6 {[%emt 0:02:10]} 39. hxg5 {[%emt 0:00:22]} h5 {[%emt 0:00:50]} 40. Qh4 {[%emt 0:00:39]} Rf5 {[%emt 0:00:51]} 41. Qe4 {[%emt 0:00:31]} Kxg5 {[%emt 0:16:01]} 42. f4+ {[%emt 0:00:00]} Kh6 {[%emt 0:00:00]} 43. Rd1 {[%emt 0:01:11]} R8f6 {[%emt 0:00:00]} 44. fxe5 {[%emt 0:06:22]} Bxe5 {[%emt 0:00:00]} 45. Rd7 {[%emt 0:04:05]} 1-0

[Event "GER-ch Youth-U18w 2023"]
[Site "Willingen"]
[Date "2023.05.28"]
[Round "2.6"]
[White "Reuter, Elisa"]
[Black "Foltin, Alica"]
[Result "1-0"]
[Annotator "NA RC"]
[ECO "C41"]
[WhiteElo "1944"]
[BlackElo "1540"]
[PlyCount "68"]
[EventDate "2022.06.05"]
[EventType "swiss"]
[EventRounds "9"]
[EventCountry "GER"]
[SourceTitle "playchess.com"]
[Source "ChessBase"]
[SourceQuality "1"]
[TimeControl "40/4500+30:900+30"]

1. e4 {[%emt 0:00:00]} d6 {[%emt 0:00:00]} 2. d4 {[%emt 0:00:00]} Nf6 {[%emt 0:00:00]} 3. Nc3 {[%emt 0:00:00]} Nbd7 {[%emt 0:00:00]} 4. Be3 {[%emt 0:00:00]} e5 {[%emt 0:00:00]} 5. h3 {[%emt 0:00:00]} Be7 {[%emt 0:00:00]} 6. Nf3 {[%emt 0:00:00]} c6 {[%emt 0:00:00]} 7. a4 {[%emt 0:00:00]} b6 {[%emt 0:00:00]} 8. Be2 {[%emt 0:00:00]} O-O {[%emt 0:00:00]} 9. O-O {[%emt 0:00:00]} Bb7 {[%emt 0:00:00]} 10. Bd3 {[%emt 0:23:58]} Qc7 {[%emt 0:00:00]} 11. Qe2 {[%emt 0:02:43]} a6 {[%emt 0:00:00]} 12. b3 {[%emt 0:05:48]} Rfe8 {[%emt 0:00:00]} 13. dxe5 {[%emt 0:08:58]} dxe5 {[%emt 0:00:00]} 14. Na2 {[%emt 0:01:53]} Bc5 {[%emt 0:04:42]} 15. Bd2 {[%emt 0:02:51]} Nh5 {[%emt 0:06:57]} 16. Kh1 {[%emt 0:06:56]} Nf4 {[%emt 0:02:14]} 17. Bxf4 {[%emt 0:01:04]} exf4 {[%emt 0:00:07]} 18. Rae1 {[%emt 0:03:34]} b5 {[%emt 0:04:33]} 19. c3 {[%emt 0:06:12]} Bb6 {[%emt 0:03:12]} 20. Bc2 {[%emt 0:03:19]} Re7 {[%emt 0:08:09]} 21. b4 {[%emt 0:03:47]} bxa4 {[%emt 0:02:10]} 22. Qd3 {[%emt 0:01:43]} Ne5 {[%emt 0:01:51]} 23. Nxe5 {[%emt 0:01:09]} Qxe5 {[%emt 0:00:43]} 24. c4 {[%emt 0:03:45]} Rd8 {[%emt 0:02:03]} 25. Qc3 {[%emt 0:00:31]} Bd4 {[%emt 0:02:23]} 26. Qf3 {[%emt 0:01:36]} c5 {[%emt 0:02:24]} 27. Re2 {[%emt 0:03:35]} f5 {[%emt 0:03:47]} 28. Rfe1 {[%emt 0:00:15]} cxb4 {[%emt 0:02:13]} 29. Nxb4 {[%emt 0:01:39]} Qd6 {[%emt 0:06:30]} 30. Nd5 {[%emt 0:00:28]} Bxd5 {[%emt 0:00:34]} 31. exd5 {[%emt 0:00:41]} Rxe2 {[%emt 0:01:23]} 32. Rxe2 {[%emt 0:00:15]} a3 {[%emt 0:01:30]} 33. Bxf5 {[%emt 0:00:43]} Bb2 {[%emt 0:01:07]} 34. Bb1 {[%emt 0:00:57]} Rb8 {[%emt 0:05:07]} 1-0

[Event "GER-ch Youth-U18w 2023"]
[Site "Willingen"]
[Date "2023.05.28"]
[Round "2.7"]
[White "Werner, Rosalie"]
[Black "Derling, Charlotte"]
[Result "1-0"]
[Annotator "NA RC"]
[ECO "B76"]
[WhiteElo "1751"]
[BlackElo "1664"]
[PlyCount "38"]
[EventDate "2022.06.05"]
[EventType "swiss"]
[EventRounds "9"]
[EventCountry "GER"]
[SourceTitle "playchess.com"]
[Source "ChessBase"]
[SourceQuality "1"]
[TimeControl "40/4500+30:900+30"]

1. e4 {[%emt 0:00:00]} c5 {[%emt 0:00:00]} 2. Nf3 {[%emt 0:00:00]} d6 {[%emt 0:00:00]} 3. d4 {[%emt 0:00:00]} cxd4 {[%emt 0:00:00]} 4. Nxd4 {[%emt 0:00:00]} Nf6 {[%emt 0:00:00]} 5. Nc3 {[%emt 0:00:00]} g6 {[%emt 0:00:00]} 6. Be3 {[%emt 0:00:00]} Bg7 {[%emt 0:00:00]} 7. f3 {[%emt 0:00:00]} Nc6 {[%emt 0:00:00]} 8. Qd2 {[%emt 0:00:00]} Bd7 {[%emt 0:00:00]} 9. O-O-O {[%emt 0:00:00]} O-O {[%emt 0:00:00]} 10. g4 {[%emt 0:00:00]} Qa5 {[%emt 0:01:03]} 11. h4 {[%emt 0:00:00]} h5 {[%emt 0:13:59]} 12. Nb3 {[%emt 0:10:32]} Qd8 {[%emt 0:05:37]} 13. gxh5 {[%emt 0:05:19]} Nxh5 {[%emt 0:00:51]} 14. Bh6 {[%emt 0:05:07]} a5 {[%emt 0:12:25]} 15. Bxg7 {[%emt 0:07:58]} Kxg7 {[%emt 0:00:40]} 16. Be2 {[%emt 0:06:06]} a4 {[%emt 0:12:02]} 17. Nd4 {[%emt 0:07:54]} Qb6 {[%emt 0:12:20]} 18. Nf5+ {[%emt 0:33:16]} Bxf5 {[%emt 0:11:05]} 19. exf5 {[%emt 0:00:06]} Qc5 {[%emt 0:04:21]} 1-0

[Event "GER-ch Youth-U18w 2023"]
[Site "Willingen"]
[Date "2023.05.28"]
[Round "2.8"]
[White "Evering, Enna"]
[Black "Petersen, Sophie"]
[Result "1-0"]
[Annotator "NA RC"]
[ECO "B90"]
[WhiteElo "1548"]
[BlackElo "1763"]
[PlyCount "39"]
[EventDate "2022.06.05"]
[EventType "swiss"]
[EventRounds "9"]
[EventCountry "GER"]
[SourceTitle "playchess.com"]
[Source "ChessBase"]
[SourceQuality "1"]
[TimeControl "40/4500+30:900+30"]

1. e4 {[%emt 0:00:00]} c5 {[%emt 0:00:00]} 2. Nf3 {[%emt 0:00:00]} d6 {[%emt 0:00:00]} 3. d4 {[%emt 0:00:00]} cxd4 {[%emt 0:00:00]} 4. Nxd4 {[%emt 0:00:00]} Nf6 {[%emt 0:00:00]} 5. Nc3 {[%emt 0:00:00]} a6 {[%emt 0:00:00]} 6. a3 {[%emt 0:00:00]} e5 {[%emt 0:00:00]} 7. Nf5 {[%emt 0:00:00]} Nxe4 {[%emt 0:00:00]} 8. Nxg7+ {[%emt 0:00:00]} Bxg7 {[%emt 0:00:00]} 9. Nxe4 {[%emt 0:00:00]} d5 {[%emt 0:06:20]} 10. Ng5 {[%emt 0:05:15]} h6 {[%emt 0:04:28]} 11. Nf3 {[%emt 0:02:51]} Nc6 {[%emt 0:02:46]} 12. c4 {[%emt 0:09:35]} Be6 {[%emt 0:07:29]} 13. cxd5 {[%emt 0:12:20]} Bxd5 {[%emt 0:03:00]} 14. Be3 {[%emt 0:07:33]} O-O {[%emt 0:07:34]} 15. Be2 {[%emt 0:07:57]} Be6 {[%emt 0:05:27]} 16. Qc1 {[%emt 0:03:16]} Rc8 {[%emt 0:04:38]} 17. Qb1 {[%emt 0:09:37]} f5 {[%emt 0:04:34]} 18. O-O {[%emt 0:02:17]} Qf6 {[%emt 0:03:44]} 19. Rc1 {[%emt 0:07:33]} e4 {[%emt 0:03:55]} 20. Rxc6 {[%emt 0:09:14]} 1-0

[Event "GER-ch Youth-U18w 2023"]
[Site "Willingen"]
[Date "2023.05.28"]
[Round "2.9"]
[White "Henninger, Claire"]
[Black "Hafermann, Lara"]
[Result "0-1"]
[Annotator "NA"]
[ECO "C50"]
[WhiteElo "1610"]
[BlackElo "1498"]
[PlyCount "59"]
[EventDate "2022.06.05"]
[EventType "swiss"]
[EventRounds "9"]
[EventCountry "GER"]
[SourceTitle "playchess.com"]
[Source "ChessBase"]
[SourceQuality "1"]
[TimeControl "40/4500+30:900+30"]

1. e4 {[%emt 0:00:00]} e5 {[%emt 0:00:00]} 2. Nf3 {[%emt 0:00:00]} Nc6 {[%emt 0:00:00]} 3. Bc4 {[%emt 0:00:00]} Bc5 {[%emt 0:00:00]} 4. d3 {[%emt 0:00:00]} Nf6 {[%emt 0:00:00]} 5. Nc3 {[%emt 0:00:00]} d6 {[%emt 0:00:00]} 6. h3 {[%emt 0:00:00]} a6 {[%emt 0:00:00]} 7. Bg5 {[%emt 0:00:00]} h6 {[%emt 0:00:00]} 8. Bh4 {[%emt 0:00:00]} Na5 {[%emt 0:00:02]} 9. Nd5 {[%emt 0:06:11]} c6 {[%emt 0:07:18]} 10. Nxf6+ {[%emt 0:00:48]} gxf6 {[%emt 0:00:02]} 11. Nd2 {[%emt 0:07:33]} h5 {[%emt 0:19:13]} 12. Qf3 {[%emt 0:05:01]} Rh6 {[%emt 0:00:10]} 13. a3 {[%emt 0:03:33]} Nxc4 {[%emt 0:00:28]} 14. Nxc4 {[%emt 0:00:26]} b5 {[%emt 0:03:24]} 15. Ne3 {[%emt 0:01:02]} Be6 {[%emt 0:08:31]} 16. Nf1 {[%emt 0:08:17]} Ke7 {[%emt 0:09:18]} 17. Ng3 {[%emt 0:05:28]} Qh8 {[%emt 0:01:41]} 18. Nf5+ {[%emt 0:02:16]} Bxf5 {[%emt 0:00:16]} 19. exf5 {[%emt 0:02:19]} Kd7 {[%emt 0:01:57]} 20. O-O-O {[%emt 0:01:41]} Qg7 {[%emt 0:04:21]} 21. Rhe1 {[%emt 0:02:27]} Rg8 {[%emt 0:02:39]} 22. g3 {[%emt 0:01:33]} Rhh8 {[%emt 0:01:20]} 23. c3 {[%emt 0:02:15]} Qh6+ {[%emt 0:01:05]} 24. Kb1 {[%emt 0:01:55]} Re8 {[%emt 0:00:51]} 25. Re2 {[%emt 0:07:01]} d5 {[%emt 0:06:48]} 26. Rc2 {[%emt 0:02:52]} Rb8 {[%emt 0:02:57]} 27. d4 {[%emt 0:03:59]} Bd6 {[%emt 0:03:53]} 28. dxe5 {[%emt 0:00:56]} fxe5 {[%emt 0:00:18]} 29. f6 {[%emt 0:02:41]} Qg6 {[%emt 0:00:47]} 30. Qe3 {[%emt 0:04:38]} 0-1

[Event "GER-ch Youth-U18w 2023"]
[Site "Willingen"]
[Date "2023.05.28"]
[Round "2.10"]
[White "Gossing, Marie-Sophie"]
[Black "Glowiak, Alexandra"]
[Result "0-1"]
[Annotator "NA RC"]
[ECO "C56"]
[WhiteElo "1395"]
[BlackElo "1660"]
[PlyCount "88"]
[EventDate "2022.06.05"]
[EventType "swiss"]
[EventRounds "9"]
[EventCountry "GER"]
[SourceTitle "playchess.com"]
[Source "ChessBase"]
[SourceQuality "1"]
[TimeControl "40/4500+30:900+30"]

1. e4 {[%emt 0:00:00]} e5 {[%emt 0:00:00]} 2. Nf3 {[%emt 0:00:00]} Nc6 {[%emt 0:00:00]} 3. Bc4 {[%emt 0:00:00]} Bc5 {[%emt 0:00:00]} 4. c3 {[%emt 0:00:00]} Nf6 {[%emt 0:00:00]} 5. d4 {[%emt 0:00:00]} exd4 {[%emt 0:00:00]} 6. O-O {[%emt 0:00:00]} d5 {[%emt 0:13:13]} 7. exd5 {[%emt 0:05:45]} Nxd5 {[%emt 0:00:24]} 8. Re1+ {[%emt 0:01:33]} Nce7 {[%emt 0:08:26]} 9. b4 {[%emt 0:06:30]} Bb6 {[%emt 0:10:49]} 10. Bg5 {[%emt 0:09:19]} f6 {[%emt 0:10:58]} 11. Bh4 {[%emt 0:02:33]} c6 {[%emt 0:01:01]} 12. Nxd4 {[%emt 0:07:48]} O-O {[%emt 0:13:11]} 13. Bg3 {[%emt 0:15:03]} Kh8 {[%emt 0:00:42]} 14. Nc2 {[%emt 0:08:36]} Bf5 {[%emt 0:01:15]} 15. Nd4 {[%emt 0:03:09]} Nxc3 {[%emt 0:06:56]} 16. Nxc3 {[%emt 0:09:44]} Bxd4 {[%emt 0:00:45]} 17. Rc1 {[%emt 0:04:03]} Bxc3 {[%emt 0:01:32]} 18. Qxd8 {[%emt 0:01:10]} Rfxd8 {[%emt 0:01:16]} 19. Rxc3 {[%emt 0:01:26]} Nd5 {[%emt 0:04:59]} 20. Rb3 {[%emt 0:01:41]} Re8 {[%emt 0:01:05]} 21. Rc1 {[%emt 0:01:26]} Bg6 {[%emt 0:01:05]} 22. b5 {[%emt 0:01:24]} a6 {[%emt 0:04:32]} 23. bxa6 {[%emt 0:01:11]} bxa6 {[%emt 0:00:24]} 24. Rb2 {[%emt 0:00:46]} Rec8 {[%emt 0:01:39]} 25. Re2 {[%emt 0:00:35]} h6 {[%emt 0:00:24]} 26. Bb3 {[%emt 0:01:01]} a5 {[%emt 0:00:33]} 27. a4 {[%emt 0:00:48]} Nb4 {[%emt 0:00:50]} 28. f3 {[%emt 0:01:39]} Bd3 {[%emt 0:00:44]} 29. Rd2 {[%emt 0:00:44]} Re8 {[%emt 0:01:10]} 30. Rc3 {[%emt 0:01:08]} Bg6 {[%emt 0:00:27]} 31. Rd7 {[%emt 0:00:41]} Red8 {[%emt 0:00:26]} 32. Rxd8+ {[%emt 0:00:41]} Rxd8 {[%emt 0:00:02]} 33. Bc7 {[%emt 0:00:24]} Ra8 {[%emt 0:00:25]} 34. Bd6 {[%emt 0:00:50]} Be8 {[%emt 0:00:51]} 35. Rc4 {[%emt 0:00:27]} Nd5 {[%emt 0:01:17]} 36. Rc5 {[%emt 0:00:22]} Nb4 {[%emt 0:00:22]} 37. Rc3 {[%emt 0:00:09]} Nd5 {[%emt 0:00:18]} 38. Rc5 {[%emt 0:00:14]} Nb6 {[%emt 0:01:06]} 39. Kf2 {[%emt 0:00:42]} g5 {[%emt 0:01:03]} 40. Bc7 {[%emt 0:00:49]} Ra6 {[%emt 0:00:44]} 41. Bc2 {[%emt 0:16:07]} Kg7 {[%emt 0:00:00]} 42. Bd8 {[%emt 0:00:00]} Bd7 {[%emt 0:00:00]} 43. Ke1 {[%emt 0:00:00]} Be8 {[%emt 0:03:56]} 44. Kd1 {[%emt 0:00:00]} Nd5 {[%emt 0:02:38]} 0-1

[Event "GER-ch Youth-U18w 2023"]
[Site "Willingen"]
[Date "2023.05.28"]
[Round "2.11"]
[White "Zoellner, Bente"]
[Black "Kieckbusch, Lotta"]
[Result "1-0"]
[Annotator "NA RC"]
[ECO "A91"]
[WhiteElo "1700"]
[BlackElo "1308"]
[PlyCount "64"]
[EventDate "2022.06.05"]
[EventType "swiss"]
[EventRounds "9"]
[EventCountry "GER"]
[SourceTitle "playchess.com"]
[Source "ChessBase"]
[SourceQuality "1"]
[TimeControl "40/4500+30:900+30"]

1. d4 {[%emt 0:00:00]} d5 {[%emt 0:00:00]} 2. c4 {[%emt 0:00:00]} e6 {[%emt 0:00:00]} 3. Nc3 {[%emt 0:00:00]} f5 {[%emt 0:00:00]} 4. g3 {[%emt 0:00:00]} Nf6 {[%emt 0:00:00]} 5. Bg2 {[%emt 0:00:00]} Be7 {[%emt 0:00:00]} 6. Nh3 {[%emt 0:00:00]} O-O {[%emt 0:00:00]} 7. Nf4 {[%emt 0:00:00]} c6 {[%emt 0:00:00]} 8. O-O {[%emt 0:00:00]} Kh8 {[%emt 0:07:09]} 9. b3 {[%emt 0:00:00]} Ne4 {[%emt 0:03:57]} 10. Qc2 {[%emt 0:00:00]} g5 {[%emt 0:08:02]} 11. Nd3 {[%emt 0:00:00]} Nd7 {[%emt 0:05:16]} 12. a4 {[%emt 0:00:00]} b6 {[%emt 0:04:13]} 13. Ba3 {[%emt 0:00:00]} Nd6 {[%emt 0:04:26]} 14. Nb1 {[%emt 0:11:26]} Bb7 {[%emt 0:07:18]} 15. Nd2 {[%emt 0:01:10]} Ne4 {[%emt 0:10:34]} 16. Bxe7 {[%emt 0:02:05]} Qxe7 {[%emt 0:00:06]} 17. Nf3 {[%emt 0:01:50]} c5 {[%emt 0:03:03]} 18. Nde5 {[%emt 0:06:08]} Nxe5 {[%emt 0:03:30]} 19. Nxe5 {[%emt 0:02:42]} cxd4 {[%emt 0:00:57]} 20. Qd3 {[%emt 0:00:57]} dxc4 {[%emt 0:03:18]} 21. Qxd4 {[%emt 0:02:41]} Qg7 {[%emt 0:02:32]} 22. bxc4 {[%emt 0:02:35]} Rad8 {[%emt 0:03:21]} 23. Nf7+ {[%emt 0:04:12]} Rxf7 {[%emt 0:04:18]} 24. Qxd8+ {[%emt 0:01:27]} Rf8 {[%emt 0:00:09]} 25. Qd3 {[%emt 0:01:17]} Qe7 {[%emt 0:05:39]} 26. Rfd1 {[%emt 0:02:19]} Nc5 {[%emt 0:02:38]} 27. Qd6 {[%emt 0:01:31]} Qf7 {[%emt 0:01:05]} 28. Qe5+ {[%emt 0:04:04]} Kg8 {[%emt 0:01:16]} 29. Ra2 {[%emt 0:02:51]} Ba6 {[%emt 0:01:08]} 30. Qc3 {[%emt 0:03:13]} f4 {[%emt 0:01:38]} 31. a5 {[%emt 0:10:21]} Qf5 {[%emt 0:01:53]} 32. axb6 {[%emt 0:02:29]} axb6 {[%emt 0:00:09]} 1-0

[Event "GER-ch Youth-U18w 2023"]
[Site "Willingen"]
[Date "2023.05.28"]
[Round "2.12"]
[White "Dohon, Maria-Johanna"]
[Black "Avetyan, Manan"]
[Result "1/2-1/2"]
[Annotator "NA RC"]
[ECO "E85"]
[WhiteElo "1507"]
[BlackElo "1368"]
[PlyCount "43"]
[EventDate "2022.06.05"]
[EventType "swiss"]
[EventRounds "9"]
[EventCountry "GER"]
[SourceTitle "playchess.com"]
[Source "ChessBase"]
[SourceQuality "1"]
[TimeControl "40/4500+30:900+30"]

1. d4 {[%emt 0:00:00]} Nf6 {[%emt 0:00:00]} 2. c4 {[%emt 0:00:00]} g6 {[%emt 0:00:00]} 3. Nc3 {[%emt 0:00:00]} Bg7 {[%emt 0:00:00]} 4. e4 {[%emt 0:00:00]} d6 {[%emt 0:00:00]} 5. f3 {[%emt 0:00:00]} O-O {[%emt 0:00:00]} 6. Be3 {[%emt 0:00:00]} e5 {[%emt 0:00:00]} 7. Nge2 {[%emt 0:00:00]} Nc6 {[%emt 0:00:00]} 8. Qd2 {[%emt 0:00:00]} Ne7 {[%emt 0:00:00]} 9. d5 {[%emt 0:00:00]} Nd7 {[%emt 0:03:54]} 10. g4 {[%emt 0:01:44]} Nb6 {[%emt 0:17:16]} 11. Ng3 {[%emt 0:03:57]} f5 {[%emt 0:11:09]} 12. gxf5 {[%emt 0:04:04]} gxf5 {[%emt 0:00:23]} 13. Bh6 {[%emt 0:28:34]} Ng6 {[%emt 0:21:20]} 14. Bxg7 {[%emt 0:03:43]} Kxg7 {[%emt 0:00:03]} 15. Bd3 {[%emt 0:02:12]} fxe4 {[%emt 0:05:43]} 16. fxe4 {[%emt 0:02:00]} Bg4 {[%emt 0:00:29]} 17. Nf5+ {[%emt 0:19:32]} Kh8 {[%emt 0:02:58]} 18. Qh6 {[%emt 0:02:23]} Bxf5 {[%emt 0:00:46]} 19. exf5 {[%emt 0:00:07]} Nf4 {[%emt 0:00:29]} 20. Be4 {[%emt 0:08:04]} Rf6 {[%emt 0:01:41]} 21. Qh4 {[%emt 0:02:48]} Nxc4 {[%emt 0:00:19]} 22. Nd1 {[%emt 0:02:18]} 1/2-1/2